bitfinex/quotes_ETHUSD_20251012
["timestamp","ask_amount","ask_price","bid_price","bid_amount"]
[1760292121316,1.92,4139.6,4138.6,0.467]
[1760292121538,6.04506949,4139.6,4138.8,2.41610543]
[1760292121740,1.92,4139.6,4139.0,2.41600125]
[1760292122150,0.968,4140.2,4139.0,0.467]
[1760292122666,1.92,4139.7,4138.3,0.467]
[1760292122851,2.41584999,4139.4,4138.3,0.467]
[1760292123055,2.41584999,4139.4,4138.4,2.4163928]
[1760292123439,2.41576937,4139.5,4138.5,2.41631783]
[1760292123639,2.41576937,4139.5,4138.7,2.41620102]
[1760292123848,2.41581871,4139.4,4138.7,2.41620102]
[1760292124044,2.41581871,4139.4,4138.4,0.30366928]
[1760292124045,2.41575069,4139.5,4138.4,2.72004616]
[1760292124246,1.92,4139.4,4138.5,2.41630722]
[1760292124470,2.4159399,4139.2,4138.4,2.41638497]
[1760292124899,1.92,4139.3,4137.1,0.467]
[1760292124900,15.17342089,4139.1,4137.1,0.467]
[1760292125201,1.92,4138.1,4136.8,0.002]
[1760292125568,2.41691051,4137.6,4136.8,2.41932331]
[1760292125742,1.92,4138.1,4136.8,0.002]
[1760292126068,1.92,4138.1,4137.3,2.41701742]
[1760292126271,4.33657916,4138.1,4137.4,2.41696543]
[1760292126645,4.33657916,4138.1,4137.2,0.467]
[1760292126835,1.92,4138.1,4137.5,2.41686912]
[1760292127038,4.33617277,4138.8,4137.6,2.88384587]
[1760292127240,2.41639991,4138.4,4136.8,0.002]
[1760292127546,2.41634467,4138.5,4137.7,2.41676075]
[1760292128040,2.41641631,4138.4,4137.4,2.41697476]
[1760292128264,3.87095937,4138.7,4137.9,2.41667567]
[1760292128439,6.28721299,4138.7,4137.9,2.41667567]
[1760292128767,1.95095937,4138.7,4137.8,0.467]
[1760292128999,0.49294714,4138.6,4137.5,0.467]
[1760292129288,4.33616026,4138.8,4137.8,2.41668822]
[1760292129495,2.41634514,4138.5,4137.7,2.41678473]
[1760292129798,2.41677258,4137.8,4136.8,0.002]
[1760292129952,2.41677258,4137.8,4137.0,2.41718984]
[1760292130152,2.41677258,4137.8,4137.1,2.41714876]
[1760292130381,0.1208,4137.6,4137.1,0.48364609]
[1760292130553,0.1208,4137.9,4137.6,2.41685074]
[1760292130764,2.41627492,4138.7,4137.8,2.41674319]
[1760292130967,0.1208,4138.1,4137.9,2.41663337]
[1760292131169,0.1208,4138.1,4138.0,0.467]
[1760292131386,1.92,4138.8,4138.3,2.41644067]
[1760292131553,15.17342089,4138.9,4137.8,0.1208]
[1760292131756,8.592112,4139.8,4136.4,0.002]
[1760292131757,0.1208,4138.3,4137.6,0.1208]
[1760292131998,0.1208,4138.3,4138.2,0.1533]
[1760292132559,0.1208,4138.3,4137.8,0.467]
[1760292132883,0.1208,4138.3,4137.6,0.1208]
[1760292133390,0.1208,4138.3,4137.3,0.467]
[1760292133391,0.1208,4137.7,4137.3,2.41703119]
[1760292133681,0.1208,4137.7,4137.0,0.1208]
[1760292133879,0.1208,4137.7,4137.1,2.41715211]
[1760292134085,0.1208,4137.7,4137.2,2.417071]
[1760292134282,0.1208,4137.7,4137.2,0.467]
[1760292134488,0.1208,4137.7,4137.3,0.467]
[1760292134782,0.1208,4137.7,4137.5,2.41687221]
[1760292134985,0.1208,4137.7,4137.5,0.467]
[1760292135488,0.1208,4137.7,4137.6,2.88386001]
[1760292135786,0.4451,4139.7,4137.7,2.4168016]
[1760292136006,4.33569926,4139.6,4138.7,2.41617071]
[1760292136208,1.92,4139.6,4138.3,0.1533]
[1760292136352,0.4451,4139.5,4137.9,0.1533]
[1760292136579,1.9954181,4139.4,4138.7,2.41616266]
[1760292136882,1.9954181,4139.4,4137.9,0.1533]
[1760292136883,1.92,4139.3,4138.3,2.41642998]
[1760292137207,2.4159102,4139.3,4137.9,0.1533]
[1760292137378,2.41593761,4139.2,4138.3,2.4164127]
[1760292137586,1.92,4139.3,4138.7,2.41621171]
[1760292137885,2.3651,4139.5,4138.7,2.41621171]
[1760292137886,0.44848841,4139.2,4138.7,2.41621171]
[1760292138086,0.44848841,4139.2,4138.8,2.41613118]
[1760292138288,2.41575914,4139.5,4138.8,2.41613118]
[1760292138482,2.41575914,4139.5,4138.7,2.41620159]
[1760292138808,0.001,4139.3,4138.2,2.41650959]
[1760292139105,0.001,4139.3,4138.8,2.41613041]
[1760292139486,0.001,4139.3,4138.9,2.41610083]
[1760292139691,0.001,4139.3,4139.1,2.41594281]
[1760292139900,0.001,4139.3,4137.9,0.1533]
[1760292140101,0.001,4139.3,4138.1,0.4607]
[1760292140408,0.001,4139.3,4138.3,2.41645119]
[1760292140576,0.001,4139.3,4138.1,0.76375834]
[1760292140909,0.001,4139.3,4137.5,0.4607]
[1760292140910,15.17342089,4139.0,4137.5,0.4607]
[1760292141110,15.17342089,4139.0,4137.7,2.4168016]
[1760292141480,15.17342089,4139.0,4138.5,2.41628613]
[1760292141694,1.8054354,4138.9,4138.5,2.41628613]
[1760292142009,1.8054354,4138.9,4138.4,2.41638574]
[1760292142203,1.8054354,4138.9,4138.5,2.41633338]
[1760292142204,4.1904354,4138.9,4138.5,2.41633338]
[1760292142711,0.001,4139.3,4138.7,2.41620575]
[1760292142875,0.001,4139.3,4137.7,2.41678249]
[1760292143081,2.88092578,4139.2,4138.5,2.41632102]
[1760292143301,1.92,4139.1,4138.5,2.41632102]
[1760292143511,2.385,4139.2,4138.6,2.41626714]
[1760292143711,0.48018745,4139.1,4138.6,2.41626714]
[1760292143891,0.48018745,4139.1,4138.7,2.41618585]
[1760292144090,0.001,4139.3,4138.6,2.41622747]
[1760292144091,2.41691618,4139.3,4138.6,2.41622747]
[1760292144619,0.465,4139.2,4137.7,2.4168016]
[1760292144802,2.41601529,4139.1,4138.4,2.41635209]
[1760292145114,0.001,4139.3,4137.3,0.4607]
[1760292145115,15.17342089,4138.8,4137.3,0.4607]
[1760292145418,0.465,4138.7,4138.0,2.41658204]
[1760292145617,0.1208,4138.4,4138.0,2.41658204]
[1760292145781,0.1208,4138.4,4138.1,2.41656596]
[1760292145984,0.1208,4138.4,4138.2,2.41650218]
[1760292146208,0.1208,4138.4,4138.1,2.41653335]
[1760292146636,0.1208,4138.4,4138.2,2.41650959]
[1760292146990,0.1208,4138.4,4138.1,0.1533]
[1760292147290,0.1208,4138.4,4137.7,0.1208]
[1760292147291,0.1208,4138.4,4137.8,0.4607]
[1760292147638,0.1208,4138.4,4137.8,2.41673685]
[1760292148099,0.1208,4138.4,4137.7,0.1208]
[1760292148493,0.1208,4138.4,4138.2,2.41645789]
[1760292148694,0.1208,4138.4,4138.2,2.41646443]
[1760292149726,0.465,4138.3,4138.2,2.41646443]
[1760292149934,0.465,4138.3,4138.1,2.41655183]
[1760292150118,0.465,4138.3,4138.2,2.41650959]
[1760292150302,0.1208,4138.4,4138.2,2.41650959]
[1760292150624,0.1208,4138.4,4137.7,0.1208]
[1760292150821,0.1208,4138.4,4138.2,2.41650849]
[1760292151023,0.1208,4138.4,4137.7,0.1208]
[1760292151222,0.1208,4138.4,4137.8,4.83348638]
[1760292151520,0.1208,4138.4,4137.7,0.5815]
[1760292151726,0.1208,4138.4,4137.7,0.1208]
[1760292151926,0.1208,4138.4,4138.3,2.41645119]
[1760292152317,0.1208,4138.4,4138.2,2.41650549]
[1760292152733,0.1208,4138.4,4138.1,2.41652348]
[1760292152930,0.1208,4138.4,4138.1,2.41651087]
[1760292153132,0.1208,4138.4,4138.2,2.41648064]
[1760292154223,0.465,4138.7,4138.2,2.41648064]
[1760292154427,2.46245357,4138.6,4138.2,2.41648064]
[1760292154725,0.465,4138.5,4138.2,2.41648064]
[1760292155628,0.465,4138.4,4136.8,0.002]
[1760292155829,2.41662638,4138.0,4136.8,2.41929934]
[1760292156027,15.17342089,4138.2,4136.8,0.002]
[1760292156028,2.41696216,4137.5,4136.8,0.002]
[1760292156336,1.92,4137.1,4136.8,0.002]
[1760292156500,2.41726896,4136.9,4136.8,0.002]
[1760292156929,5.43586896,4136.9,4136.8,0.002]
[1760292158519,1.92,4136.9,4136.8,0.002]
[1760292158725,4.80226896,4136.9,4136.8,0.002]
[1760292158900,5.52421172,4136.9,4136.8,0.002]
[1760292160948,1.92,4136.9,4136.8,0.002]
[1760292161516,2.385,4136.9,4136.8,0.002]
[1760292163224,4.80226896,4136.9,4136.8,0.002]
[1760292163436,2.385,4136.9,4136.8,0.002]
[1760292164545,4.80226896,4136.9,4136.8,0.002]
[1760292164735,5.52421332,4136.9,4136.8,0.002]
[1760292166532,3.10694436,4136.9,4136.8,0.002]
[1760292166740,4.80226896,4136.9,4136.8,0.002]
[1760292168160,1.92,4136.9,4136.8,0.002]
[1760292168660,4.80586896,4136.9,4136.8,0.002]
[1760292170066,1.92,4136.9,4136.8,0.002]
[1760292170731,4.80586896,4136.9,4136.8,0.002]
[1760292170961,5.28645586,4136.9,4136.8,0.002]
[1760292171266,14.04072786,4136.9,4136.8,0.002]
[1760292171734,15.48072786,4136.9,4136.4,0.002]
[1760292171934,28.8922756,4136.5,4136.4,0.002]
[1760292172151,28.0532976,4136.5,4136.4,0.002]
[1760292172354,3.64162339,4136.5,4136.4,0.002]
[1760292172552,4.80610271,4136.5,4136.4,0.002]
[1760292173243,1.92,4136.5,4136.4,0.002]
[1760292173548,0.1208,4136.7,4136.5,2.41744913]
[1760292173748,0.1208,4136.7,4136.4,0.002]
[1760292174088,0.1208,4136.7,4136.4,2.41954742]
[1760292174675,0.1208,4136.7,4136.4,0.002]
[1760292174842,0.1208,4136.7,4136.4,2.41955999]
[1760292175472,0.1208,4136.7,4136.4,2.41955053]
[1760292175846,0.1208,4136.7,4136.4,0.49231818]
[1760292176045,0.001,4136.9,4136.8,2.4173274]
[1760292177159,0.001,4136.9,4136.8,2.9709274]
[1760292179036,0.001,4136.9,4136.8,3.4837274]
[1760292179262,0.001,4136.9,4136.8,3.6045274]
[1760292179861,0.001,4136.9,4136.8,5.5245274]
[1760292180032,0.001,4136.9,4136.8,6.31872457]
[1760292181856,0.001,4136.9,4136.8,6.19792457]
[1760292182054,0.001,4137.4,4136.9,4.97086896]
[1760292182254,0.001,4139.3,4137.0,0.6336]
[1760292182567,0.001,4139.3,4139.2,2.56722578]
[1760292182771,0.001,4139.3,4139.2,3.06554897]
[1760292182967,0.001,4139.3,4139.2,3.49834897]
[1760292187669,1e-08,4140.2,4140.1,3.04900059]
[1760292188187,0.001,4140.6,4140.5,3.04876725]
[1760292188351,1.92,4143.0,4141.0,2.41487563]
[1760292188685,2.41389571,4142.7,4141.0,2.41487563]
[1760292188843,0.4686,4142.4,4141.0,2.41487563]
[1760292189151,0.2156,4143.1,4141.0,2.84767563]
[1760292189152,1.92,4142.1,4141.0,2.84767563]
[1760292189550,2.41404984,4142.5,4141.0,2.84767563]
[1760292189744,2.41400663,4142.5,4141.0,2.84767563]
[1760292190249,2.41405994,4142.4,4141.0,2.84767563]
[1760292190750,4.33396466,4142.6,4141.0,2.84767563]
[1760292190978,1.92,4142.6,4141.0,2.84767563]
[1760292191382,1.92,4141.9,4141.0,2.84767563]
[1760292191973,1.92,4141.9,4141.0,2.96767563]
[1760292192174,1.92,4141.9,4141.0,0.12]
[1760292192371,1.92,4141.9,4139.4,2.41576256]
[1760292192372,0.2156,4141.8,4140.1,0.4328]
[1760292192576,2.41459585,4141.5,4140.7,2.41504283]
[1760292192759,1.92,4141.6,4140.1,0.71762731]
[1760292192966,2.3886,4141.3,4140.5,2.41512279]
[1760292193167,1.92,4141.6,4139.3,0.4328]
[1760292193355,1.92,4141.7,4140.7,2.41500693]
[1760292193689,1.921,4141.1,4140.6,2.41509932]
[1760292193874,1.921,4141.1,4139.9,0.4328]
[1760292194184,2.41524494,4140.4,4139.5,2.41570861]
[1760292194481,1.92,4139.9,4139.0,0.1503]
[1760292194687,1.92,4139.9,4139.1,0.4328]
[1760292194850,1.92,4139.9,4139.7,2.41561904]
[1760292195180,0.6842,4139.8,4138.8,2.41611179]
[1760292195382,1.92,4139.7,4138.9,2.41609274]
[1760292195547,1.92,4139.3,4138.0,0.1839]
[1760292195955,2.41597513,4139.2,4138.3,2.41641751]
[1760292196280,2.4160837,4139.0,4138.1,2.41651961]
[1760292196472,2.4160837,4139.0,4138.2,2.41650012]
[1760292196688,2.8845943,4139.1,4138.3,2.41644797]
[1760292196864,2.41604583,4139.0,4138.2,2.41650352]
[1760292197065,2.41610483,4138.9,4138.0,2.41657853]
[1760292197267,1.92,4138.7,4137.5,0.4328]
[1760292197566,1.92,4138.7,4136.4,0.002]
[1760292197567,2.4163917,4138.5,4137.6,2.41681294]
[1760292198293,1.92,4138.7,4137.9,2.41667223]
[1760292198693,4.33622088,4138.7,4137.8,2.41668848]
[1760292198894,5.03025571,4138.7,4137.8,2.41668848]
[1760292199093,5.03025571,4138.7,4137.6,2.41685237]
[1760292199094,2.41631633,4138.6,4137.0,0.4328]
[1760292199398,2.4159396,4139.2,4137.1,2.41715211]
[1760292199603,2.4159396,4139.2,4136.5,2.41748529]
[1760292199604,0.6336,4139.2,4137.2,0.4527]
[1760292199777,4.33603319,4139.1,4138.2,2.41645934]
[1760292199982,0.91218069,4139.0,4138.6,2.41623259]
[1760292200182,1.92,4139.3,4138.6,2.41623259]
[1760292200791,1.92,4139.3,4138.2,2.41650959]
[1760292201097,1.92,4139.3,4138.8,2.41615015]
[1760292201500,2.3699,4139.3,4138.6,2.41627603]
[1760292201688,2.3699,4139.3,4138.5,2.41631254]
[1760292201893,2.4159315,4139.2,4138.4,2.41634602]
[1760292202094,1.92,4139.3,4138.1,0.1839]
[1760292202291,0.12,4139.3,4139.2,2.41587428]
[1760292202509,0.12,4139.3,4139.1,2.41597512]
[1760292202712,0.12,4139.3,4139.2,2.41592578]
[1760292202879,0.12,4139.7,4139.0,0.1208]
[1760292203205,0.12,4139.7,4139.5,2.41573352]
[1760292203503,0.12,4139.7,4139.4,2.41579547]
[1760292203883,0.12,4139.7,4139.0,0.1208]
[1760292204072,0.12,4139.3,4136.9,2.41725966]
[1760292204272,0.1208,4138.9,4138.2,0.1208]
[1760292204993,2.41603853,4139.1,4137.7,0.4527]
[1760292205309,0.1208,4138.6,4138.3,2.41644148]
[1760292205504,0.1208,4138.6,4138.4,2.41638684]
[1760292206109,15.57871677,4139.5,4138.3,0.1839]
[1760292206308,0.1208,4139.1,4138.4,0.5735]
[1760292206682,0.1208,4139.1,4139.0,2.41604252]
[1760292206882,0.1208,4139.1,4138.9,2.41608547]
[1760292207531,0.1208,4139.1,4138.4,0.1208]
[1760292207832,1.92,4138.9,4138.0,2.41661766]
[1760292208008,1.92,4138.9,4138.3,2.41643863]
[1760292208306,0.4499,4139.0,4138.4,2.41637394]
[1760292208511,2.41582003,4139.4,4138.4,2.4163928]
[1760292208811,1.92,4139.5,4138.6,2.41622566]
[1760292209020,4.33580905,4139.4,4138.6,2.41622566]
[1760292209199,4.33576137,4139.5,4138.8,2.41612038]
[1760292209380,2.5536,4139.6,4138.3,0.1839]
[1760292209580,1.92,4139.7,4138.4,0.2600457]
[1760292209803,2.41555769,4139.9,4139.1,2.41594934]
[1760292210083,2.41555769,4139.9,4139.2,2.41591506]
[1760292210280,1.92,4140.1,4139.0,0.4527]
[1760292210494,0.4499,4140.5,4140.0,2.41545276]
[1760292210692,0.4499,4140.5,4140.1,2.4153527]
[1760292210909,1.84436147,4140.5,4140.2,2.41533727]
[1760292211109,15.57871677,4140.7,4140.3,2.41523035]
[1760292211413,0.001,4141.1,4140.3,0.4527]
[1760292211648,0.001,4141.1,4141.0,2.41487563]
[1760292212127,0.001,4141.1,4141.0,2.86757563]
[1760292212294,0.001,4141.1,4141.0,3.39582867]
[1760292213721,0.001,4141.1,4141.0,2.86757563]
[1760292217226,0.001,4141.1,4141.0,2.41487563]
[1760292217594,0.001,4141.1,4141.0,2.98757563]
[1760292218537,0.001,4141.1,4141.0,2.86757563]
[1760292218827,0.001,4141.1,4141.0,2.98757563]
[1760292219202,0.001,4141.1,4141.0,3.52782867]
[1760292220442,0.001,4141.1,4141.0,4.16142867]
[1760292220664,0.001,4141.1,4141.0,6.08142867]
[1760292227340,0.001,4141.1,4141.0,5.96142867]
[1760292231248,1e-08,4142.0,4141.9,2.4143509]
[1760292231449,1e-08,4142.0,4141.9,2.89722875]
[1760292231622,1e-08,4142.0,4141.9,3.36512875]
[1760292237444,1e-08,4142.0,4141.9,3.48512875]
[1760292241176,1e-08,4142.0,4141.9,3.01722875]
[1760292241365,1e-08,4142.0,4141.9,2.5343509]
[1760292241680,1e-08,4142.0,4141.9,3.0022509]
[1760292243373,0.44470001,4142.0,4140.8,0.4679]
[1760292243684,1e-08,4142.0,4141.6,2.41448211]
[1760292243881,1.51333174,4142.0,4141.6,2.41448211]
[1760292244083,1e-08,4142.0,4141.6,2.41448211]
[1760292244283,1e-08,4142.0,4141.5,2.41456622]
[1760292244480,1e-08,4142.0,4141.2,0.4679]
[1760292244481,1e-08,4142.0,4141.2,2.41475853]
[1760292244786,1e-08,4142.0,4141.5,2.41457525]
[1760292245688,1e-08,4142.0,4141.1,0.4679]
[1760292245988,1e-08,4142.0,4141.9,2.4143509]
[1760292246349,1e-08,4142.0,4141.9,2.8822509]
[1760292246764,1e-08,4142.0,4141.3,0.4679]
[1760292246967,1e-08,4142.0,4141.0,2.41686093]
[1760292246968,1e-08,4142.0,4141.4,2.41458444]
[1760292247299,0.4334224,4141.9,4141.4,2.41458444]
[1760292247483,1e-08,4142.0,4141.5,2.4145599]
[1760292247796,1e-08,4142.0,4141.6,2.41452349]
[1760292248003,1e-08,4142.0,4141.5,2.40265631]
[1760292248381,1e-08,4142.0,4141.6,2.41452073]
[1760292249293,1e-08,4142.0,4141.0,0.002]
[1760292249502,1e-08,4142.0,4141.1,2.41479947]
[1760292249668,1.15769363,4141.9,4141.0,0.002]
[1760292249869,0.47789363,4141.9,4141.0,0.002]
[1760292250171,1e-08,4142.0,4141.0,0.4699]
[1760292250371,1e-08,4142.0,4141.9,2.4143509]
[1760292253269,0.56470001,4142.0,4141.0,0.002]
[1760292253470,0.56470001,4142.0,4141.3,0.12]
[1760292253701,0.2351,4141.9,4141.3,0.12]
[1760292253868,1.92,4141.8,4141.0,0.002]
[1760292254066,0.45198,4141.7,4141.0,2.41686127]
[1760292254270,0.45198,4141.7,4141.1,2.41480579]
[1760292254502,0.45198,4141.7,4141.2,2.41475517]
[1760292254691,0.89668,4141.7,4141.2,2.41475517]
[1760292255775,0.89668,4141.7,4141.0,2.4168751]
[1760292255776,0.45198,4141.7,4141.3,2.41465668]
[1760292255978,1e-08,4142.0,4141.3,2.41465804]
[1760292256203,0.2351,4141.9,4141.2,2.41473874]
[1760292256528,0.6798,4141.9,4141.3,2.41469378]
[1760292256879,0.6798,4141.9,4141.4,2.41462373]
[1760292257102,0.4447,4141.9,4141.4,2.41462373]
[1760292257413,0.4447,4141.8,4141.4,2.41462373]
[1760292257775,0.4447,4141.8,4141.5,2.41457334]
[1760292257972,0.70468,4141.8,4141.5,2.41457334]
[1760292258387,0.70468,4141.8,4141.4,2.4146265]
[1760292259686,0.4496,4141.7,4141.2,2.41470127]
[1760292260012,0.4496,4141.7,4141.3,2.41469944]
[1760292260476,0.4496,4141.6,4141.2,2.41474125]
[1760292260671,0.4496,4141.6,4141.1,2.41480036]
[1760292260879,0.4496,4141.6,4141.0,0.002]
[1760292260880,0.4496,4141.6,4141.0,2.41686261]
[1760292261177,0.97750898,4141.6,4141.1,2.41476631]
[1760292261515,0.4496,4141.5,4141.1,2.41476631]
[1760292261807,0.4496,4141.5,4141.0,0.002]
[1760292262010,0.44960001,4142.0,4141.0,0.002]
[1760292262208,0.44960001,4142.0,4141.4,2.41460286]
[1760292262408,0.47838164,4141.9,4141.4,2.41460286]
[1760292262614,1e-08,4142.0,4141.9,2.4143509]
[1760292262780,1e-08,4142.0,4141.9,2.8634509]
[1760292263885,1e-08,4142.0,4141.9,2.9834509]
[1760292264317,1e-08,4142.0,4141.9,2.5343509]
[1760292264627,1e-08,4142.0,4141.9,2.8634509]
[1760292264785,1e-08,4142.0,4141.9,3.39123847]
[1760292265601,1e-08,4142.0,4141.9,2.94213847]
[1760292266136,1e-08,4142.0,4141.6,0.4491]
[1760292266434,1e-08,4142.0,4141.9,2.4143509]
[1760292267616,1e-08,4142.0,4141.9,2.8634509]
[1760292272924,1e-08,4142.0,4141.9,2.4143509]
[1760292273566,1e-08,4142.0,4141.9,2.8634509]
[1760292274327,1e-08,4142.0,4141.9,2.5343509]
[1760292274533,1e-08,4142.0,4141.9,2.9834509]
[1760292274737,1e-08,4142.0,4141.9,2.5343509]
[1760292275130,1e-08,4142.0,4141.9,2.9834509]
[1760292275335,1e-08,4142.0,4141.9,2.8634509]
[1760292275549,1e-08,4142.0,4141.9,3.51124274]
[1760292280160,1e-08,4142.0,4141.9,5.94484274]
[1760292280341,1e-08,4142.0,4141.9,6.06484274]
[1760292280933,0.966,4146.5,4142.0,1.92]
[1760292281129,2.41230103,4145.5,4142.7,0.6336]
[1760292281335,2.41230103,4145.5,4144.7,2.41271629]
[1760292281336,2.8391301,4145.4,4144.7,2.41271629]
[1760292281549,0.9191301,4145.4,4144.2,0.4491]
[1760292281748,0.4496,4145.4,4144.7,2.41266376]
[1760292282039,1.92,4145.6,4144.4,0.4491]
[1760292282276,0.29431333,4145.7,4144.4,0.4491]
[1760292282457,3.08998885,4145.8,4144.9,2.4125582]
[1760292282652,0.55019599,4145.7,4144.9,2.4125582]
[1760292282854,0.2283,4146.1,4144.9,2.4125582]
[1760292282855,0.2283,4146.1,4144.9,2.4125938]
[1760292283041,0.4496,4146.0,4144.7,0.4491]
[1760292283241,2.41223828,4145.6,4144.5,2.41278482]
[1760292283452,2.41223828,4145.6,4144.4,0.4552]
[1760292283453,2.41223828,4145.6,4144.8,2.41261992]
[1760292284068,2.41224187,4145.6,4144.5,2.41282206]
[1760292284235,5.00669644,4145.5,4144.7,2.41267564]
[1760292284440,0.67443295,4145.5,4144.7,2.41267564]
[1760292284675,0.4433,4145.8,4144.7,2.41267564]
[1760292284879,2.41223298,4145.6,4144.8,2.41263206]
[1760292285041,0.4433,4145.8,4144.8,2.41263206]
[1760292285366,0.4433,4145.8,4144.4,2.86804264]
[1760292285367,15.42763062,4145.8,4144.4,2.86804264]
[1760292285566,2.41225425,4145.5,4144.6,2.41272616]
[1760292285972,2.41225425,4145.5,4144.5,2.41282395]
[1760292286156,1.92,4145.6,4144.8,2.41265149]
[1760292286357,1.92,4145.6,4144.7,0.4552]
[1760292286568,1.92,4145.6,4144.9,2.41259922]
[1760292286736,3.29093193,4145.5,4144.7,0.4552]
[1760292286940,1.92,4145.4,4144.8,2.41265235]
[1760292287147,1.92,4145.4,4144.3,0.4552]
[1760292287148,0.87866345,4145.5,4144.4,2.4128945]
[1760292287478,4.3321028,4145.8,4145.1,2.41248657]
[1760292287770,2.4121028,4145.8,4145.1,2.41248657]
[1760292287974,2.3838,4146.0,4145.2,2.41242334]
[1760292288174,2.87578172,4146.0,4145.2,2.41242334]
[1760292288373,2.4120261,4145.9,4145.2,2.41242334]
[1760292288675,0.50241261,4145.8,4145.2,2.41242334]
[1760292289475,0.50241261,4145.8,4145.1,2.41248162]
[1760292290266,2.9144986,4145.8,4145.1,2.41248162]
[1760292290573,0.50241261,4145.8,4144.9,2.41260344]
[1760292290779,0.50241261,4145.8,4145.2,2.41241906]
[1760292290957,0.48016343,4145.7,4145.2,2.41241906]
[1760292292266,1.92,4146.1,4145.3,0.4668]
[1760292292472,0.12,4145.9,4145.2,0.12]
[1760292292853,0.6872,4145.9,4144.8,0.4668]
[1760292293054,0.12,4145.7,4145.0,0.12]
[1760292293368,0.12,4145.7,4145.1,2.41246636]
[1760292293369,0.32193159,4145.6,4145.1,2.41246636]
[1760292293577,0.32193159,4145.6,4145.2,2.41238706]
[1760292293870,0.32193159,4145.6,4145.3,0.4668]
[1760292294047,2.41191815,4146.1,4145.3,2.41236636]
[1760292294250,0.12,4145.9,4145.3,2.41236636]
[1760292294492,0.12,4145.9,4145.4,2.41230848]
[1760292295055,0.12,4145.9,4145.2,0.12]
[1760292295268,2.41138172,4147.0,4146.0,2.41191129]
[1760292295451,2.72130882,4146.9,4146.1,2.41190351]
[1760292295677,0.30985817,4146.9,4146.1,2.41190351]
[1760292295876,2.22985817,4146.9,4146.1,2.41190351]
[1760292296187,2.22985817,4146.9,4146.2,2.41183876]
[1760292296188,2.72130876,4146.9,4146.2,2.41183876]
[1760292296354,2.41155686,4146.7,4145.9,2.41197536]
[1760292296554,0.2721415,4146.6,4145.9,2.41197536]
[1760292296778,0.2721415,4146.6,4146.0,2.41195865]
[1760292296983,0.2721415,4146.6,4144.8,2.41260797]
[1760292296984,0.2721415,4146.6,4145.4,0.4668]
[1760292297161,0.2721415,4146.6,4145.8,2.4120691]
[1760292297162,0.4638,4146.6,4145.8,2.4120691]
[1760292297789,2.87542788,4146.6,4145.8,2.4120691]
[1760292298091,2.41155012,4146.8,4146.0,2.41191094]
[1760292298393,2.41156889,4146.7,4146.0,2.41191094]
[1760292299053,2.3838,4146.8,4145.7,2.4120871]
[1760292299277,0.70218,4146.7,4144.0,1.92]
[1760292299591,2.41194887,4146.1,4145.3,2.41232379]
[1760292300162,2.41194887,4146.1,4145.1,2.41247396]
[1760292300163,2.41194887,4146.1,4145.4,2.41230718]
[1760292300558,2.3838,4146.3,4142.1,2.57761643]
[1760292300786,15.52262265,4145.8,4144.0,1.92]
[1760292300973,15.52262265,4145.8,4142.2,2.41417604]
[1760292300974,15.52262265,4145.8,4144.1,0.4668]
[1760292301291,2.03181996,4146.2,4144.1,0.4668]
[1760292301501,13.223138,4145.7,4144.1,0.4668]
[1760292301701,4.33225425,4145.5,4144.2,2.41301095]
[1760292301872,2.41243514,4145.2,4144.2,2.41301095]
[1760292302069,2.41243514,4145.2,4144.5,2.41281677]
[1760292302275,0.41208655,4145.4,4143.8,4.82648776]
[1760292302463,1.92,4145.9,4145.0,2.41251587]
[1760292302666,2.41212071,4145.8,4145.0,2.41254262]
[1760292302961,4.33202958,4145.9,4145.1,2.41247803]
[1760292303161,1.92,4145.9,4145.1,2.41248406]
[1760292303406,2.4118577,4146.2,4145.4,2.41225711]
[1760292303698,2.65309361,4146.1,4145.4,2.41225867]
[1760292303861,1.92,4146.0,4145.4,2.41225867]
[1760292304893,1.92,4145.7,4143.9,2.87996078]
[1760292305191,2.04,4145.3,4144.0,0.4668]
[1760292305402,0.12,4145.0,4144.3,0.12]
[1760292305598,0.12,4145.0,4144.7,2.41271461]
[1760292305599,0.25038,4145.0,4144.7,2.41271461]
[1760292305805,0.12,4145.2,4144.5,0.12]
[1760292306164,0.12,4145.2,4144.5,2.53281864]
[1760292306382,4.79618319,4145.3,4144.6,2.41276327]
[1760292306564,1.92,4145.3,4144.7,2.41270994]
[1760292307870,0.4638,4145.2,4144.7,2.41270994]
[1760292308062,1.92,4145.3,4144.7,2.41270994]
[1760292308063,2.49567435,4145.1,4144.7,2.41270994]
[1760292308302,2.41267021,4144.8,4144.1,2.41306148]
[1760292308687,2.41273901,4144.7,4144.0,2.41312679]
[1760292308869,2.41273901,4144.7,4143.9,2.41313529]
[1760292309398,2.41273901,4144.7,4142.5,4.33396055]
[1760292309399,1.92,4144.9,4144.2,2.41298695]
[1760292309570,0.41203216,4144.8,4144.2,2.41298695]
[1760292309908,0.41203216,4144.8,4143.8,0.4668]
[1760292309909,0.72574646,4145.0,4144.3,2.41293979]
[1760292310112,0.72574646,4145.0,4144.5,2.41280977]
[1760292310402,2.1434,4145.9,4144.6,2.87957264]
[1760292310564,0.72564815,4145.6,4142.9,2.41372297]
[1760292310769,15.52262265,4146.9,4144.7,2.87947009]
[1760292310770,15.98642265,4146.9,4144.7,2.87947009]
[1760292310995,1.6782936,4146.8,4144.8,0.75474701]
[1760292311207,1.6782936,4146.8,4145.0,2.41254523]
[1760292311500,1.6782936,4146.8,4145.1,0.4668]
[1760292311680,0.966,4147.0,4146.4,2.41168134]
[1760292311881,0.966,4147.0,4146.5,2.41166578]
[1760292312179,0.29431333,4148.1,4146.8,2.41147192]
[1760292312395,15.52262265,4147.6,4146.4,2.41173065]
[1760292312695,0.72529377,4147.5,4147.0,2.4113357]
[1760292312897,0.2234,4147.9,4146.5,0.4668]
[1760292313096,2.34621992,4147.8,4146.9,2.41143254]
[1760292313302,2.34621992,4147.8,4146.9,2.41143987]
[1760292313600,1.62098226,4147.8,4146.8,2.87824067]
[1760292313799,2.41102961,4147.7,4146.8,2.41149453]